Cogmind - Beta 10.2 @@@ ROGUE MODE // 2021.02.03 @ 21:05:50 Player: CrossedViper Result: Destroyed by P-60 Hacker with Shock Rifle Performance ------------- Evolutions (0) 0 Regions Visited (3) 600 Robots Destroyed (15) 75 Value Destroyed (527) 527 Prototype IDs (25) 500 Alien Tech Used (0) 0 Bonus (300) 300 TOTAL SCORE: 2002 Bonus ------- Aligned with FarCom 300 Cogmind --------- Core Integrity 0/250 Matter 75/300 Energy 75/100 System Corruption 6% Temperature Cool (84) Movement Walking (45) Location -10/Exiles Parts ------- > --- POWER (1) -------- (None) > --- PROPULSION (2) --- Potential Leg Potential Leg > --- UTILITY (2) ------ Thief Drone Bay (2/3) > --- WEAPON (2) ------- 8R-AWN's Boregun 8R-AWN's Boregun > --- INVENTORY (4) ---- Humpback Beamcaster Shock Trap Peak State ------------ > --- POWER ------------ (None) > --- PROPULSION ------- Potential Leg Potential Leg > --- UTILITY ---------- Light Armor Plating Thief Drone Bay > --- WEAPON ----------- 8R-AWN's Boregun 8R-AWN's Boregun > --- INVENTORY -------- Humpback Beamcaster Shock Trap [Rating: 48] Favorites ----------- Power Light Ion Engine Engine Light Ion Engine Propulsion Light Treads Treads Light Treads Leg Potential Leg Utility Large Storage Unit Device Thief Drone Bay Storage Large Storage Unit Protection Light Armor Plating Weapon Light Assault Rifle Energy Gun Small Laser Ballistic Gun Light Assault Rifle Build | -11 -10 -10 -10 ------- Run | Scr Mat Min Exi Slots Evolved . | . . . . Power . | . . . . Propulsion . | . . . . Utility . | . . . . Weapon . | . . . . Parts Attached 23 | . 10 3 10 Power 2 | . 2 . . Engine 2 | . 2 . . Core . | . . . . Reactor . | . . . . Propulsion 4 | . 2 . 2 Treads 2 | . 2 . . Leg 2 | . . . 2 Wheel . | . . . . Hover . | . . . . Flight . | . . . . Utility 5 | . 1 1 3 Device 1 | . . . 1 Storage 2 | . 1 . 1 Processor . | . . . . Hackware . | . . . . Protection 2 | . . 1 1 Artifact . | . . . . Weapon 12 | . 5 2 5 Energy Gun 7 | . 5 . 2 Energy Cannon . | . . . . Ballistic Gun 5 | . . 2 3 Ballistic Cannon . | . . . . Launcher . | . . . . Special Weapon . | . . . . Impact Weapon . | . . . . Slashing Weapon . | . . . . Piercing Weapon . | . . . . Special Melee Weapon . | . . . . Unidentified Prototypes 2 | . . . 2 Parts Lost 6 | . 1 1 4 Power 1 | . . . 1 Propulsion . | . . . . Utility 1 | . . . 1 Weapon 4 | . 1 1 2 Highest Loss Streak 2 | . 1 1 2 Average Slot Usage (%) 88 | . 84 89 88 Engine 13 | . 13 14 12 Treads 23 | . 10 28 21 Leg 4 | . 16 . 6 Storage 13 | . 16 15 11 Protection 3 | . . 2 4 Energy Gun 10 | . 25 15 . Ballistic Gun 16 | . . 12 27 Naked Turns . | . . . . Heaviest Build 85 | 11 26 26 85 Greatest Support 60 | 20 40 40 60 Greatest Overweight (x) 2 | . . . 2 Average Overweight (x) . | . . . 1 Largest Inventory Capacity 24 | . 12 12 24 Average Capacity 13 | . 7 10 18 Most Carried 21 | . 6 10 21 Average Carried 9 | . 3 6 14 Final Capacity 12 | 6 12 10 4 Final Carried 10 | 6 . 10 4 Class Distribution -------------------- 73% | Mutant 26% | Hauler-Mutant Dominant Class ---------------- Mutant | -10/Materials Mutant | -10/Mines Hauler-Mutant | -10/Exiles Resources | -11 -10 -10 -10 ----------- Run | Scr Mat Min Exi Matter Collected 392 | 200 10 106 76 Remotely . | . . . . Salvage Created 601 | . 118 38 445 Parts 44 | . 3 6 35 Haulers Intercepted . | . . . . Recyclers Shooed . | . . . . Parts Field Recycled . | . . . . Retrieved Matter . | . . . . Parts Self-Destructed . | . . . . Prevented . | . . . . Kills | -11 -10 -10 -10 ------- Run | Scr Mat Min Exi Combat Hostiles Destroyed 14 | . 2 3 9 Guns 14 | . 2 3 9 Classes Destroyed 5 | . 2 1 2 Watcher 1 | . 1 . . Swarmer 3 | . . 3 . Grunt 7 | . 2 . 5 Hunter 2 | . . . 2 Programmer 2 | . . . 2 Best Kill Streak 9 | . 2 3 9 Combat Bots Only 9 | . 2 3 9 Max Kills in Single Turn 2 | . 1 1 2 Gunslinging . | . . . . Exploded . | . . . . Melee . | . . . . Uniques/NPCs Destroyed . | . . . . Combat | -11 -10 -10 -10 -------- Run | Scr Mat Min Exi Damage Taken 1484 | . 244 78 1162 Core 254 | . 10 10 234 Absorbed by Shields . | . . . . Core Remaining (%) 100 | 100 . . . Volleys Fired 49 | . 10 6 33 Largest 2 | . 2 2 2 Hottest 105 | . 100 90 105 Shots Fired 91 | . 20 10 61 Gun 91 | . 20 10 61 Cannon . | . . . . Launcher . | . . . . Special . | . . . . Kinetic 51 | . . . 51 Thermal 40 | . 20 10 10 Explosive . | . . . . Electromagnetic . | . . . . Robot Hit Streak 18 | . 8 2 18 Robot Miss Streak 4 | . 1 2 4 Penetration Max 2 | . . . 2 Secondary Targets 1 | . 1 . . Max Gunslinging Chain 1 | . 1 . . Shots Hit Robots 60 | . 16 4 40 Core Hits 24 | . 6 3 15 Critical Hits 15 | . . . 15 Critical Kills 7 | . . . 7 Critical Parts Destroyed 8 | . . . 8 Melee Attacks . | . . . . Impact . | . . . . Slashing . | . . . . Piercing . | . . . . Sneak Attacks . | . . . . Combat Hostiles . | . . . . Follow-up Attacks . | . . . . Damage Inflicted 945 | . 199 56 690 Guns 934 | . 199 45 690 Cannons . | . . . . Explosions . | . . . . Melee . | . . . . Ramming 11 | . . 11 . Kinetic 583 | . . . 583 Thermal 351 | . 199 45 107 Explosive . | . . . . Electromagnetic . | . . . . Impact . | . . . . Slashing . | . . . . Piercing . | . . . . Highest Corruption 6 | . . . 6 Average Corruption 5 | . . . 5 Corruption Purged . | . . . . Effects 7 | . . . 7 Message Errors 1 | . . . 1 Misfires 1 | . . . 1 Targeting Errors 3 | . . . 3 Weapon Failures 2 | . . . 2 Overload Shots . | . . . . Overflow Damage . | . . . . Projectiles . | . . . . Explosions . | . . . . Melee . | . . . . Knockbacks . | . . . . Impact . | . . . . Kinetic . | . . . . Secondary . | . . . . Self-Inflicted Damage . | . . . . Shots . | . . . . Rammed 2 | . . 2 . Targets Rammed 2 | . . 2 . Kicked . | . . . . Crushed . | . . . . Highest Temperature 396 | . 396 120 194 Average Temperature 134 | . 211 72 95 Received Heat Transfer 189 | . 141 . 48 Effects 2 | . 2 . . Energy Bleed 2 | . 2 . . Siege Activations . | . . . . Robots Corrupted . | . . . . Combat Hostiles . | . . . . Parts Fried . | . . . . Impact Corruptions . | . . . . Robots Melted . | . . . . Combat Hostiles . | . . . . Parts Melted 4 | . 4 . . Heat Transferred 876 | . 580 112 184 Parts Sabotaged . | . . . . Parts Stolen . | . . . . Parts Stripped . | . . . . Power Chain Reactions . | . . . . Missiles Intercepted . | . . . . Alert | -11 -10 -10 -10 ------- Run | Scr Mat Min Exi Peak Influence 98 | . 98 97 . Initial 37 | . . 37 . Average 28 | . 47 24 . Maximum Alert Level . | . . . . Low Security (%) 100 | . 100 100 . Level 1 . | . . . . Level 2 . | . . . . Level 3 . | . . . . Level 4 . | . . . . Level 5 . | . . . . High Security . | . . . . Max Security . | . . . . Squads Dispatched 3 | . 3 . . Investigation 3 | . 3 . . Extermination . | . . . . Reinforcement . | . . . . Assault . | . . . . Garrison . | . . . . Intercept . | . . . . Construction Impeded . | . . . . Haulers Reinforced . | . . . . Stealth | -11 -10 -10 -10 --------- Run | Scr Mat Min Exi Distress Signals . | . . . . Communications Jammed . | . . . . Distress Signals . | . . . . Times Spotted 16 | . 3 4 9 Peak Tracking Total 10 | . 2 3 10 Tactical Retreats . | . . . . Traps | -11 -10 -10 -10 ------- Run | Scr Mat Min Exi Traps Triggered 5 | . 5 . . Indirectly . | . . . . Trap Hack Attempts . | . . . . Triggered . | . . . . Disarmed . | . . . . Reprogrammed . | . . . . Reused . | . . . . Traps Extracted . | . . . . Installed . | . . . . Triggered . | . . . . Exploded 1 | . . . 1 Machines | -11 -10 -10 -10 ---------- Run | Scr Mat Min Exi Machines Disabled 2 | . . . 2 Max in Single Turn 1 | . . . 1 Machines Sabotaged . | . . . . Garrisons Compromised . | . . . . Overloaded Fab Kills . | . . . . Fab Network Shutdowns . | . . . . Hacking | -11 -10 -10 -10 --------- Run | Scr Mat Min Exi Machines Accessed 6 | . 3 1 2 Terminals 2 | . 2 . . Fabricators . | . . . . Repair Stations . | . . . . Recycling Units 1 | . 1 . . Scanalyzers . | . . . . Garrison Access . | . . . . Total Hacks 7 | . 4 1 2 Successful 6 | . 3 1 2 Failed 1 | . 1 . . Catastrophic . | . . . . Database Lockouts . | . . . . Manual 4 | . 3 . 1 Terminals 3 | . 3 . . Fabricators . | . . . . Repair Stations . | . . . . Recycling Units 1 | . 1 . . Scanalyzers . | . . . . Garrison Access . | . . . . Terminal Hacks 5 | . 2 1 2 Record 1 | . . . 1 Robot Analysis 1 | . 1 . . Open Door 1 | . . 1 . Alert Level 1 | . 1 . . EX-Prototype ID Bank 1 | . . . 1 Fabricator Hacks . | . . . . Repair Station Hacks . | . . . . Recycling Unit Hacks . | . . . . Scanalyzer . | . . . . Garrison Access Hacks . | . . . . Unauthorized Hacks 1 | . 1 . . Terminals . | . . . . Fabricators . | . . . . Repair Stations . | . . . . Recycling Units 1 | . 1 . . Tunnel 1 | . 1 . . Scanalyzers . | . . . . Garrison Access . | . . . . Data Cores Recovered . | . . . . Used . | . . . . Hacking Detections 2 | . 2 . . Full Trace Events . | . . . . Feedback Events . | . . . . Feedback Blocked . | . . . . Robot Schematics Acquired . | . . . . Robots Built . | . . . . Matter . | . . . . Time . | . . . . Total Robot Build Rating . | . . . . Part Schematics Acquired . | . . . . Parts Built . | . . . . Matter . | . . . . Time . | . . . . Total Part Build Rating . | . . . . Parts Repaired . | . . . . Time . | . . . . Parts Recycled . | . . . . Recycled Matter . | . . . . Retrieved Matter . | . . . . Retrieved Components . | . . . . Parts Scanalyzed . | . . . . Part Schematics Acquired . | . . . . Parts Damaged . | . . . . Bothacking | -11 -10 -10 -10 ------------ Run | Scr Mat Min Exi Used RIF Installer . | . . . . Robots Hacked . | . . . . Non-combat . | . . . . Combat . | . . . . Robot Hacks Applied . | . . . . Relay Couplers Released . | . . . . Robots Rewired . | . . . . Allies Hacked . | . . . . Hacks Repelled . | . . . . Allies | -11 -10 -10 -10 -------- Run | Scr Mat Min Exi Total Allies . | . . . . Largest Group . | . . . . Highest-Rated Group . | . . . . Highest-Rated Ally . | . . . . Total Orders 1 | . . . 1 RETURN 1 | . . . 1 Ally Attacks 37 | . . . 37 Total Damage 184 | . . . 184 Kills . | . . . . Allies Corrupted . | . . . . Allies Melted . | . . . . Intel | -11 -10 -10 -10 ------- Run | Scr Mat Min Exi Robot Analysis Total 1 | . 1 . . Derelict Logs Recovered 1 | . . 1 . Drone Launches 12 | . . . 12 Drone Recoveries 11 | . . . 11 Exploration | -11 -10 -10 -10 ------------- Run | Scr Mat Min Exi Turns Passed 2024 | . 197 1015 812 Spaces Moved 1105 | 1 110 609 385 Core . | . . . . Treads 968 | . 44 609 315 Legs 137 | 1 66 . 70 Wheels . | . . . . Hover . | . . . . Flight . | . . . . Fastest Speed 45 | 120 120 160 45 Average Speed 159 | 120 136 160 166 Slowest Speed 200 | 120 160 160 200 Overloaded Moves 69 | . . . 69 Propulsion Burnouts . | . . . . Robots Hopped . | . . . . Cave-ins Triggered . | . . . . Exploration Rate (%) 47 | 2 25 97 67 Regions Visited 3 Branch Regions 2 Pre-discovered Areas 2 | . 1 . 1 Known Exits Taken . | . . . . Unknown Exits Taken 3 | 1 1 1 . Scrap Searched 3 | . . 3 . Spaces Dug . | . . . . Terrain Destroyed 3 | . . . 3 Melee . | . . . . Projectile 3 | . . . 3 AOE . | . . . . Terrain Rammed . | . . . . Walls Destroyed . | . . . . Machines Disabled . | . . . . Actions | -11 -10 -10 -10 --------- Run | Scr Mat Min Exi Total 1276 | . 136 641 499 Wait 53 | . 4 3 46 Move 1102 | . 109 608 385 Hop . | . . . . Pick Up 33 | . . 15 18 Fast Attach 10 | . 6 . 4 Attach 12 | . 4 3 5 Detach . | . . . . Swap 1 | . . . 1 Drop 14 | . 3 4 7 Fire 49 | . 10 6 33 Melee . | . . . . Ram . | . . . . Kick . | . . . . Crush 2 | . . 2 . Escape Stasis . | . . . . Rewire . | . . . . Trap . | . . . . Miscellaneous . | . . . . Route ------- -11/Scrapyard -10/Materials -10/Mines (discovered 3 exits: [*Mat x2] / *Exi) -10/Exiles (discovered 2 exits: Min x2) History --------- Turn | Location | Event 1 | -11/Scrapyard | Discovered new exit (range 0) 1 | -11/Scrapyard | Entered Materials 155 | -10/Materials | Discovered new exit (range 15) 198 | -10/Materials | Entered Mines 212 | -10/Mines | Met a Derelict bent on vengeance 260 | -10/Mines | Found the Drone Emporium 266 | -10/Mines | Found Prototype Device 315 | -10/Mines | Build established: Mutant 394 | -10/Mines | Found a hidden stash of uninstalled traps 408 | -10/Mines | Discovered new exit (range 5) 877 | -10/Mines | Deemed a non-threat by the Exiles lab entrance 877 | -10/Mines | Discovered new exit (range 5) 1045 | -10/Mines | Discovered new exit (range 13) 1087 | -10/Mines | Joined a pair of Derelicts in attacking an 0b10 outpost 1213 | -10/Mines | Entered Exiles 1214 | -10/Exiles | Identified exit to Mines 1255 | -10/Exiles | Met 8R-AWN 1281 | -10/Exiles | Met EX-HEX 1425 | -10/Exiles | Met EX-DEC 1467 | -10/Exiles | Learned location of Zion (-7) 1628 | -10/Exiles | Met EX-BIN 1652 | -10/Exiles | Build established: Hauler-Mutant 1656 | -10/Exiles | Aligned with FarCom system 1658 | -10/Exiles | Given EX-Vault access code 1704 | -10/Exiles | Opened EX-Vault 1718 | -10/Exiles | Found Latent Energy Streamer 1727 | -10/Exiles | Found Potential Leg 1730 | -10/Exiles | Found Potential Leg 1771 | -10/Exiles | Warned to stay clear of 0b10 Research branches 1788 | -10/Exiles | Exiles lab attacked by MAIN.C 1855 | -10/Exiles | Attacked by the Exiles 1883 | -10/Exiles | Core integrity fell below 50% 1887 | -10/Exiles | Identified Thief Drone Bay 1917 | -10/Exiles | Found Prototype Ballistic Gun 1917 | -10/Exiles | Identified 8R-AWN's Boregun 1995 | -10/Exiles | Found 8R-AWN's Boregun 2023 | -10/Exiles | Core integrity fell below 20% 2025 | -10/Exiles | Destroyed by P-60 Hacker with Shock Rifle Last Messages --------------- 02016_ Destroyed Imp. Heat Sink. 02016_ HV Slug penetrates 8R-AWN. 02016_ Slug penetrates 8R-AWN. 02019_ HV Slug penetrates P-60 Hacker. 02019_ P-60 Hacker suffers critical hit. 02019_ Destroyed Remote Datajack. 02019_ Lgt. Armor Plating destroyed. 02019_ 8R-AWN system corrupted by crushing effect. 02021_ Penetrated by Slug. 02022_ 8R-AWN knocked back. 02022_ HV Slug penetrates P-60 Hacker. 02022_ P-60 Hacker suffers critical hit. 02022_ Destroyed Gravmag System. 02023_ RPCT3&APYWGDWJWQUBV8????????????????##????????????????????????# | | ???????????????????????# ????????????????????????# | | ???????????????????????# ????????????????????????# | | ???????????????????????#!##??????????????????????? | | ???????????????????????#! #??????????????????????? | | ????????????????????????==#??????????????????????? | | ????????? ??????????????#!#####??????????????????? | | ????????? ######???????#!!!!"#??????????????????? | | ???????? #""#??????# =!!"#??????????????????? | | ???????? ????###=![ "#??????????????????? | | ????????" #???#;#&!]""#????????????##????? | | ????????" ##### "#???????????? """?? | | ?????????# ## "#????????????" """#? | | ??????????# #" ###???????????"" ?? | | ?????????????# % #????????????#"" ?? | | ????????????????# * ##???????????#"" "#? | | ????????????????### [! #???????????? ""?? | | ??????????########" = ###???????????" "??? | | ??????????# !!""""" @ ##??????????# #??? | | ??????????# "### !g ######???### ###? | | ??????????#! "#?## !=! #####X# #"## | | ??????????#! ##??#" ! b """ | | ??????????# !""""""###???#"# % "" | | ??????????##########?????##;# !*[ " | | ??????????????????????????# ### =%*[!%= | | ??????????????????????????# #?##;!%|p*! | | ??????????????????????????###???##=!=% | | ?????????????????????????????????##%*| | | ??????????????????????????????????##[ | | ???????????????????????????????????#""" | | ??????????????????????????????????##" | | ??????????????????????????????????#"" | | ??????????????????????????????????#""" " | | ?????????????????????????????????#""" "" | | ?????????????????????????????????#""" " | | ?????????????????????????????????#"" | | ?????????????????????????????????#""" | | ?????????????????????????????????#"" | | ??????????????????????????????????#"" | | ??????????????????????????????????#"""" | | ???????????????????????????????????# | | ???????????????????????????????????#" | | ???????????????????????????????????#"""" | +----------------------------------------------------+ Best States ------------- Heat Dissipation 25 Energy Generation 10 Energy Capacity 125 Matter Stores 300 Matter Capacity 300 Sight Range 16 Terrain Scan Density 10 Armor Coverage 150 Evasion (%) 51 Recoil Reduction 2 Item Schematics ----------------- None Robot Schematics ------------------ None Fabricated ------------ Nothing Alien Tech Used ----------------- None Achievements -------------- None Challenges ------------ None Game ------ Seed ProcessingTitaniumPod Manual? 0 Play Time 00:13:47 Cumulative 293.6 hours Start 2021.02.03 @ 20:54:44 End 2021.02.03 @ 21:05:50 Sessions 1 Manual Loads 0 Difficulty Rogue Special Mode None Game No. 248 Rogue 241 Adventurer 0 Explorer 7 Win Type - Total 9 Types 3/0/6/0/0/0/0/0/0 Lore% 75 Gallery% 91 Achievement% 72 Wizard Run 0 Options --------- ASCII 0 Keyboard 0 Movement Numpad Keybinds 0 Fullscreen 1 Font 18/X11Bold Map View 76x50 Tactical HUD 1 Map Filters NONE Filters NONE Steam 1 RUN: a38e955d-64b7-4106-a04d-22b8cb17579e